fUST/lending_fUST_20250408
["ID","MTS","AMOUNT","RATE_DAILY","PERIOD"]
[357432495,1744066253249,-538.22,0.00023013,2]
[357432497,1744066253261,-1744.2,0.00023013,2]
[357432499,1744066253271,-500.0,0.00023013,2]
[357432501,1744066253281,-1489.78,0.00023013,2]
[357432503,1744066253291,-1219.67,0.00023013,2]
[357432505,1744066253301,-514.53,0.00023013,2]
[357432507,1744066253309,-1336.49,0.00023013,2]
[357432509,1744066253319,-500.0,0.00023013,2]
[357432511,1744066253329,-1384.16,0.00023013,2]
[357432512,1744066253339,-500.0,0.00023013,2]
[357432513,1744066253349,-553.35,0.00023013,2]
[357432514,1744066253358,-500.0,0.00023013,2]
[357432515,1744066253368,-929.62,0.00023013,2]
[357432516,1744066253378,-500.0,0.00023013,2]
[357432517,1744066253388,-500.0,0.00023013,2]
[357432518,1744066253397,-1147.47,0.00023013,2]
[357432519,1744066253407,-500.0,0.00023013,2]
[357432520,1744066253417,-500.0,0.00023013,2]
[357432521,1744066253427,-500.0,0.00023013,2]
[357432522,1744066253437,-544.01,0.00023013,2]
[357432523,1744066253447,-500.0,0.00023013,2]
[357432524,1744066253456,-500.0,0.00023013,2]
[357432525,1744066253465,-1011.19,0.00023013,2]
[357432526,1744066253475,-500.0,0.00023013,2]
[357432527,1744066253485,-3017.52,0.00023013,2]
[357432528,1744066253494,-500.0,0.00023013,2]
[357432529,1744066253504,-516.66,0.00023013,2]
[357432530,1744066253518,-500.0,0.00023013,2]
[357432532,1744066253528,-500.0,0.00023013,2]
[357432534,1744066253537,-952.54,0.00023013,2]
[357432543,1744066253604,-500.0,0.00023013,2]
[357432545,1744066253615,-500.0,0.00023013,2]
[357432547,1744066253625,-1324.37,0.00023013,2]
[357432549,1744066253638,-151.0,0.00023013,7]
[357432551,1744066253647,-500.0,0.00023013,2]
[357432553,1744066253656,-500.0,0.00023013,2]
[357432555,1744066253666,-692.85,0.00023013,2]
[357432557,1744066253675,-500.0,0.00023013,2]
[357432559,1744066253685,-500.0,0.00023013,2]
[357432561,1744066253694,-2490.71,0.00023013,2]
[357432563,1744066253703,-500.0,0.00023013,2]
[357432565,1744066253712,-521.13,0.00023013,2]
[357432567,1744066253721,-662.95,0.00023013,2]
[357432569,1744066253732,-500.0,0.00023013,2]
[357432571,1744066253741,-10864.56,0.00023013,2]
[357432574,1744066253751,-500.0,0.00023013,2]
[357432575,1744066253761,-500.0,0.00023013,2]
[357432577,1744066253771,-500.0,0.00023013,2]
[357432579,1744066253781,-543.0,0.00023027,2]
[357432581,1744066253790,-2254.0,0.00023027,2]
[357432584,1744066253800,-151.0,0.00023287,2]
[357432586,1744066253810,-151.0,0.00023287,2]
[357432588,1744066253820,-151.0,0.00023287,7]
[357432590,1744066253829,-500.0,0.00023287,2]
[357432592,1744066253839,-500.0,0.00023287,2]
[357432594,1744066253849,-594.52,0.00023287,2]
[357432596,1744066253858,-500.0,0.00023287,2]
[357432598,1744066253867,-500.0,0.00023287,2]
[357432600,1744066253878,-500.0,0.00023287,2]
[357432602,1744066253891,-500.0,0.00023287,2]
[357432604,1744066253901,-500.0,0.00023287,2]
[357432605,1744066253910,-500.0,0.00023287,2]
[357432607,1744066253920,-500.0,0.00023287,2]
[357432610,1744066253930,-500.0,0.00023287,2]
[357432612,1744066253939,-151.0,0.00023287,7]
[357432614,1744066253949,-519.3,0.00023287,2]
[357432615,1744066253959,-811.34,0.00023287,2]
[357432618,1744066253968,-500.0,0.00023287,2]
[357432620,1744066253977,-500.0,0.00023287,2]
[357432621,1744066253987,-500.0,0.00023287,2]
[357432624,1744066253996,-500.0,0.00023287,2]
[357432625,1744066254005,-500.0,0.00023287,2]
[357432627,1744066254015,-899.11,0.00023287,2]
[357432629,1744066254024,-1456.61,0.00023287,2]
[357432631,1744066254033,-500.0,0.00023287,2]
[357432634,1744066254043,-500.0,0.00023287,2]
[357432636,1744066254052,-500.0,0.00023287,2]
[357432638,1744066254062,-500.0,0.00023287,2]
[357432640,1744066254071,-500.0,0.00023287,2]
[357432642,1744066254080,-500.0,0.00023287,2]
[357432644,1744066254090,-497.45898502,0.00023287,2]
[357432646,1744066254099,-500.0,0.00023287,2]
[357432648,1744066254108,-500.0,0.00023287,2]
[357432650,1744066254118,-500.0,0.00023287,2]
[357432652,1744066254127,-535.79116177,0.00023287,2]
[357432654,1744066254137,-580.73,0.00023287,2]
[357432656,1744066254146,-500.0,0.00023287,2]
[357432658,1744066254156,-500.0,0.00023287,2]
[357432660,1744066254164,-500.0,0.00023287,2]
[357432662,1744066254174,-557.86,0.00023287,2]
[357432664,1744066254183,-500.0,0.00023287,2]
[357432666,1744066254192,-820.86,0.00023287,2]
[357432668,1744066254201,-500.0,0.00023287,2]
[357432670,1744066254210,-500.0,0.00023287,2]
[357432672,1744066254220,-762.58,0.00023287,2]
[357432674,1744066254229,-500.0,0.00023287,2]
[357432676,1744066254239,-500.0,0.00023287,2]
[357432678,1744066254248,-500.0,0.00023287,2]
[357432680,1744066254258,-500.0,0.00023287,2]
[357432682,1744066254268,-500.0,0.00023287,2]
[357432684,1744066254279,-500.0,0.00023287,2]
[357432686,1744066254288,-500.0,0.00023287,2]
[357432688,1744066254298,-500.0,0.00023287,2]
[357432690,1744066254308,-500.0,0.00023287,2]
[357432692,1744066254318,-500.0,0.00023287,2]
[357432694,1744066254327,-500.0,0.00023287,2]
[357432696,1744066254336,-908.71,0.00023287,2]
[357432698,1744066254345,-812.4,0.00023287,2]
[357432700,1744066254355,-500.0,0.00023287,2]
[357432702,1744066254364,-500.0,0.00023287,2]
[357432704,1744066254373,-500.0,0.00023287,2]
[357432706,1744066254383,-252.3801,0.00023287,7]
[357432708,1744066254392,-500.0,0.00023287,2]
[357432710,1744066254401,-252.3801,0.00023287,7]
[357432712,1744066254410,-583.04,0.00023287,2]
[357432714,1744066254419,-500.0,0.00023287,2]
[357432716,1744066254428,-500.0,0.00023287,2]
[357432718,1744066254438,-946.45,0.00023287,2]
[357432720,1744066254447,-1608.43,0.00023287,2]
[357432722,1744066254456,-500.0,0.00023287,2]
[357432724,1744066254466,-500.0,0.00023287,2]
[357432726,1744066254475,-529.04,0.00023287,2]
[357432728,1744066254485,-500.0,0.00023287,2]
[357432731,1744066254494,-634.85,0.00023287,2]
[357432733,1744066254503,-500.0,0.00023287,2]
[357432735,1744066254514,-500.0,0.00023287,2]
[357432737,1744066254523,-1391.69,0.00023287,2]
[357432739,1744066254532,-522.79,0.00023287,2]
[357432741,1744066254541,-500.0,0.00023287,2]
[357432743,1744066254551,-714.78,0.00023287,2]
[357432745,1744066254560,-500.0,0.00023287,2]
[357432747,1744066254569,-500.0,0.00023287,2]
[357432749,1744066254578,-1322.93,0.00023287,2]
[357432751,1744066254587,-526.52,0.00023287,2]
[357432753,1744066254596,-500.0,0.00023287,2]
[357432755,1744066254605,-1003.01,0.00023287,2]
[357432757,1744066254614,-442.522977,0.00023287,7]
[357432759,1744066254624,-500.0,0.00023287,2]
[357432761,1744066254632,-200.0,0.00023287,2]
[357432763,1744066254641,-442.522977,0.00023287,7]
[357432764,1744066254650,-1097.68,0.00023287,2]
[357432766,1744066254660,-653.61,0.00023287,2]
[357432768,1744066254669,-500.0,0.00023287,2]
[357432771,1744066254679,-1590.53,0.00023287,2]
[357432773,1744066254688,-683.97,0.00023287,2]
[357432775,1744066254698,-500.0,0.00023287,2]
[357432777,1744066254707,-500.0,0.00023287,2]
[357432779,1744066254716,-500.0,0.00023287,2]
[357432781,1744066254725,-547.11,0.00023287,2]
[357432783,1744066254735,-500.0,0.00023287,2]
[357432785,1744066254744,-290.742792,0.00023287,7]
[357432787,1744066254753,-500.0,0.00023287,2]
[357432789,1744066254762,-500.0,0.00023287,2]
[357432790,1744066254771,-290.742792,0.00023287,7]
[357432793,1744066254781,-500.0,0.00023287,2]
[357432794,1744066254790,-500.0,0.00023287,2]
[357432796,1744066254799,-500.0,0.00023287,2]
[357432798,1744066254809,-1552.55,0.00023287,2]
[357432800,1744066254818,-569.53,0.00023287,2]
[357432802,1744066254828,-500.0,0.00023287,2]
[357432804,1744066254837,-500.0,0.00023287,2]
[357432806,1744066254847,-500.0,0.00023287,2]
[357432808,1744066254856,-2143.85,0.00023287,2]
[357432810,1744066254865,-672.03,0.00023287,2]
[357432812,1744066254874,-500.0,0.00023287,2]
[357432814,1744066254887,-1176.29,0.00023287,2]
[357432816,1744066254896,-500.0,0.00023287,2]
[357432818,1744066254906,-532.09,0.00023287,2]
[357432820,1744066254915,-500.0,0.00023287,2]
[357432822,1744066254925,-500.0,0.00023287,2]
[357432824,1744066254935,-831.19,0.00023287,2]
[357432826,1744066254943,-500.0,0.00023287,2]
[357432828,1744066254952,-500.0,0.00023287,2]
[357432830,1744066254964,-1769.76,0.00023287,2]
[357432833,1744066254974,-500.0,0.00023287,2]
[357432835,1744066254984,-500.0,0.00023287,2]
[357432837,1744066254993,-539.61,0.00023287,2]
[357432839,1744066255002,-500.0,0.00023287,2]
[357432841,1744066255012,-1062.71,0.00023287,2]
[357432843,1744066255021,-500.0,0.00023287,2]
[357432845,1744066255031,-582.3,0.00023287,2]
[357432847,1744066255040,-500.0,0.00023287,2]
[357432849,1744066255049,-968.29,0.00023287,2]
[357432851,1744066255059,-500.0,0.00023287,2]
[357432853,1744066255068,-500.0,0.00023287,2]
[357432855,1744066255077,-500.0,0.00023287,2]
[357432857,1744066255086,-564.44,0.00023287,2]
[357432859,1744066255096,-500.0,0.00023287,2]
[357432861,1744066255105,-500.0,0.00023287,2]
[357432863,1744066255115,-1613.95,0.00023287,2]
[357432865,1744066255124,-500.0,0.00023287,2]
[357432867,1744066255134,-2461.22,0.00023287,2]
[357432869,1744066255143,-500.0,0.00023287,2]
[357432871,1744066255152,-171.25021841,0.00023287,2]
[357432873,1744066255161,-873.55,0.00023287,2]
[357432875,1744066255170,-2674.77,0.00023287,2]
[357432877,1744066255179,-500.0,0.00023287,2]
[357432879,1744066255189,-631.6,0.00023287,2]
[357432881,1744066255198,-1394.78,0.00023287,2]
[357432883,1744066255207,-500.0,0.00023287,2]
[357432885,1744066255216,-500.0,0.00023287,2]
[357432887,1744066255225,-500.0,0.00023287,2]
[357432889,1744066255234,-500.0,0.00023287,2]
[357432891,1744066255244,-671.63,0.00023287,2]
[357432893,1744066255253,-500.0,0.00023287,2]
[357432895,1744066255264,-500.0,0.00023287,2]
[357432897,1744066255274,-500.0,0.00023287,2]
[357432899,1744066255283,-522.49,0.00023287,2]
[357432901,1744066255292,-1447.86,0.00023287,2]
[357432903,1744066255301,-3581.51,0.00023287,2]
[357432905,1744066255312,-500.0,0.00023287,2]
[357432907,1744066255322,-500.0,0.00023287,2]
[357432909,1744066255332,-269.17075271,0.00023287,2]
[357432911,1744066255341,-202.42188,0.00023287,7]
[357432913,1744066255350,-500.0,0.00023287,2]
[357432915,1744066255359,-2777.14,0.00023287,2]
[357432917,1744066255369,-1349.66,0.00023287,2]
[357432919,1744066255378,-1293.9,0.00023287,2]
[357432921,1744066255388,-6741.73,0.00023287,2]
[357432923,1744066255397,-202.42188,0.00023287,7]
[357432925,1744066255406,-2029.31,0.00023287,2]
[357432927,1744066255416,-500.0,0.00023287,2]
[357432929,1744066255425,-576.67,0.00023287,2]
[357432931,1744066255434,-200.0,0.00023287,2]
[357432933,1744066255443,-1982.66,0.00023287,2]
[357432935,1744066255452,-500.0,0.00023287,2]
[357432937,1744066255462,-500.0,0.00023287,2]
[357432939,1744066255471,-537.39,0.00023287,2]
[357432941,1744066255481,-500.0,0.00023287,2]
[357432943,1744066255491,-500.0,0.00023287,2]
[357432945,1744066255500,-500.0,0.00023287,2]
[357432947,1744066255509,-500.0,0.00023287,2]
[357432949,1744066255519,-509.12,0.00023287,2]
[357432951,1744066255528,-500.0,0.00023287,2]
[357432953,1744066255537,-500.0,0.00023287,2]
[357432955,1744066255547,-2790.26,0.00023287,2]
[357432957,1744066255556,-500.0,0.00023287,2]
[357432959,1744066255566,-623.33,0.00023287,2]
[357432961,1744066255575,-500.0,0.00023287,2]
[357432963,1744066255585,-500.0,0.00023287,2]
[357432965,1744066255594,-2184.29,0.00023287,2]
[357432967,1744066255604,-957.01,0.00023287,2]
[357432969,1744066255613,-500.0,0.00023287,2]
[357432971,1744066255622,-1926.98,0.00023287,2]
[357432973,1744066255631,-500.0,0.00023287,2]
[357432975,1744066255641,-500.0,0.00023287,2]
[357432977,1744066255650,-500.0,0.00023287,2]
[357432979,1744066255660,-756.45,0.00023287,2]
[357432981,1744066255669,-2175.04,0.00023287,2]
[357432983,1744066255678,-500.0,0.00023287,2]
[357432985,1744066255688,-3830.55,0.00023287,2]
[357432987,1744066255697,-375.93401115,0.00023287,2]
[357432989,1744066255707,-538.22,0.00023287,2]
[357432991,1744066255716,-1744.2,0.00023287,2]
[357432993,1744066255725,-500.0,0.00023287,2]
[357432995,1744066255735,-1489.78,0.00023287,2]
[357432997,1744066255744,-1219.67,0.00023287,2]
[357432999,1744066255753,-514.53,0.00023287,2]
[357433001,1744066255764,-1336.49,0.00023287,2]
[357433003,1744066255774,-500.0,0.00023287,2]
[357433005,1744066255783,-1384.16,0.00023287,2]
[357433007,1744066255793,-500.0,0.00023287,2]
[357433009,1744066255802,-553.35,0.00023287,2]
[357433011,1744066255811,-500.0,0.00023287,2]
[357433013,1744066255820,-929.62,0.00023287,2]
[357433015,1744066255830,-500.0,0.00023287,2]
[357433017,1744066255839,-500.0,0.00023287,2]
[357433019,1744066255848,-1147.47,0.00023287,2]
[357433020,1744066255857,-500.0,0.00023287,2]
[357433022,1744066255866,-180.02619446,0.00023287,2]
[357433024,1744066255876,-500.0,0.00023287,2]
[357433026,1744066255888,-544.01,0.00023287,2]
[357433028,1744066255897,-500.0,0.00023287,2]
[357433030,1744066255907,-500.0,0.00023287,2]
[357433032,1744066255916,-1011.19,0.00023287,2]
[357433034,1744066255925,-500.0,0.00023287,2]
[357433036,1744066255934,-3017.52,0.00023287,2]
[357433038,1744066255943,-500.0,0.00023287,2]
[357433040,1744066255953,-516.66,0.00023287,2]
[357433042,1744066255962,-500.0,0.00023287,2]
[357433044,1744066255972,-500.0,0.00023287,2]
[357433046,1744066255981,-952.54,0.00023287,2]
[357433048,1744066255989,-500.0,0.00023287,2]
[357433050,1744066255999,-500.0,0.00023287,2]
[357433051,1744066256009,-1324.37,0.00023287,2]
[357433053,1744066256018,-500.0,0.00023287,2]
[357433055,1744066256028,-500.0,0.00023287,2]
[357433057,1744066256037,-692.85,0.00023287,2]
[357433059,1744066256046,-500.0,0.00023287,2]
[357433061,1744066256056,-2490.71,0.00023287,2]
[357433063,1744066256065,-500.0,0.00023287,2]
[357433065,1744066256074,-521.13,0.00023287,2]
[357433067,1744066256084,-662.95,0.00023287,2]
[357433069,1744066256093,-500.0,0.00023287,2]
[357433071,1744066256103,-10864.56,0.00023287,2]
[357433073,1744066256112,-500.0,0.00023287,2]
[357433075,1744066256122,-500.0,0.00023287,2]
[357433077,1744066256131,-500.0,0.00023287,2]
[357433079,1744066256140,-420.0,0.0002339,2]
[357433081,1744066256150,-420.0,0.00023485,2]
[357433083,1744066256159,-500.0,0.00023561,2]
[357433085,1744066256170,-500.0,0.00023561,2]
[357433087,1744066256180,-594.52,0.00023561,2]
[357433089,1744066256189,-500.0,0.00023561,2]
[357433091,1744066256198,-518.15661133,0.00023561,2]
[357433093,1744066256208,-500.0,0.00023561,2]
[357433095,1744066256218,-315.44485339,0.00023561,2]
[357433097,1744066256227,-500.0,0.00023561,2]
[357433099,1744066256236,-500.0,0.00023561,2]
[357433101,1744066256246,-500.0,0.00023561,2]
[357433103,1744066256256,-328.57899676,0.00023561,2]
[357433105,1744066256267,-519.3,0.00023561,2]
[357433107,1744066256276,-811.34,0.00023561,2]
[357433109,1744066256286,-500.0,0.00023561,2]
[357433111,1744066256295,-500.0,0.00023561,2]
[357433113,1744066256305,-500.0,0.00023561,2]
[357433115,1744066256315,-510.04771922,0.00023561,2]
[357433117,1744066256325,-500.0,0.00023561,2]
[357433119,1744066256335,-899.11,0.00023561,2]
[357433121,1744066256345,-1456.61,0.00023561,2]
[357433123,1744066256355,-500.0,0.00023561,2]
[357433125,1744066256365,-500.0,0.00023561,2]
[357433127,1744066256375,-500.0,0.00023561,2]
[357433129,1744066256385,-540.91422563,0.00023561,2]
[357433131,1744066256395,-500.0,0.00023561,2]
[357433133,1744066256405,-500.0,0.00023561,2]
[357433135,1744066256415,-500.0,0.00023561,2]
[357433137,1744066256424,-168.3076056,0.00023561,2]
[357433139,1744066256434,-500.0,0.00023561,2]
[357433141,1744066256444,-580.73,0.00023561,2]
[357433143,1744066256453,-500.0,0.00023561,2]
[357433145,1744066256463,-500.0,0.00023561,2]
[357433147,1744066256474,-500.0,0.00023561,2]
[357433149,1744066256483,-557.86,0.00023561,2]
[357433151,1744066256493,-500.0,0.00023561,2]
[357433153,1744066256503,-820.86,0.00023561,2]
[357433155,1744066256513,-500.0,0.00023561,2]
[357433157,1744066256523,-500.0,0.00023561,2]
[357433159,1744066256533,-762.58,0.00023561,2]
[357433161,1744066256542,-500.0,0.00023561,2]
[357433163,1744066256552,-559.07952673,0.00023561,2]
[357433165,1744066256561,-500.0,0.00023561,2]
[357433166,1744066256571,-500.0,0.00023561,2]
[357433168,1744066256580,-500.0,0.00023561,2]
[357433170,1744066256590,-500.0,0.00023561,2]
[357433172,1744066256599,-500.0,0.00023561,2]
[357433174,1744066256609,-500.0,0.00023561,2]
[357433176,1744066256619,-500.0,0.00023561,2]
[357433178,1744066256629,-500.0,0.00023561,2]
[357433180,1744066256638,-500.0,0.00023561,2]
[357433182,1744066256648,-908.71,0.00023561,2]
[357433184,1744066256659,-812.4,0.00023561,2]
[357433187,1744066256671,-500.0,0.00023561,2]
[357433188,1744066256680,-500.0,0.00023561,2]
[357433190,1744066256691,-500.0,0.00023561,2]
[357433192,1744066256700,-500.0,0.00023561,2]
[357433194,1744066256710,-583.04,0.00023561,2]
[357433196,1744066256720,-500.0,0.00023561,2]
[357433198,1744066256730,-500.0,0.00023561,2]
[357433200,1744066256740,-946.45,0.00023561,2]
[357433202,1744066256750,-1608.43,0.00023561,2]
[357433204,1744066256761,-500.0,0.00023561,2]
[357433206,1744066256771,-500.0,0.00023561,2]
[357433208,1744066256782,-529.04,0.00023561,2]
[357433210,1744066256793,-500.0,0.00023561,2]
[357433212,1744066256802,-634.85,0.00023561,2]
[357433214,1744066256812,-500.0,0.00023561,2]
[357433216,1744066256822,-516.70531664,0.00023561,2]
[357433218,1744066256831,-1391.69,0.00023561,2]
[357433220,1744066256841,-522.79,0.00023561,2]
[357433222,1744066256851,-500.0,0.00023561,2]
[357433224,1744066256862,-714.78,0.00023561,2]
[357433226,1744066256872,-500.0,0.00023561,2]
[357433228,1744066256885,-500.0,0.00023561,2]
[357433230,1744066256896,-1322.93,0.00023561,2]
[357433232,1744066256906,-526.52,0.00023561,2]
[357433234,1744066256917,-500.0,0.00023561,2]
[357433236,1744066256928,-1003.01,0.00023561,2]
[357433238,1744066256938,-500.0,0.00023561,2]
[357433240,1744066256948,-1097.68,0.00023561,2]
[357433242,1744066256959,-653.61,0.00023561,2]
[357433244,1744066256969,-500.0,0.00023561,2]
[357433246,1744066256979,-1590.53,0.00023561,2]
[357433248,1744066256988,-683.97,0.00023561,2]
[357433250,1744066256998,-500.0,0.00023561,2]
[357433252,1744066257009,-500.0,0.00023561,2]
[357433254,1744066257020,-500.0,0.00023561,2]
[357433256,1744066257030,-547.11,0.00023561,2]
[357433258,1744066257040,-500.0,0.00023561,2]
[357433260,1744066257050,-500.0,0.00023561,2]
[357433262,1744066257060,-500.0,0.00023561,2]
[357433264,1744066257071,-500.0,0.00023561,2]
[357433266,1744066257082,-500.0,0.00023561,2]
[357433268,1744066257092,-500.0,0.00023561,2]
[357433270,1744066257101,-1552.55,0.00023561,2]
[357433272,1744066257111,-569.53,0.00023561,2]
[357433273,1744066257121,-500.0,0.00023561,2]
[357433275,1744066257131,-176.24813991,0.00023561,2]
[357433277,1744066257141,-500.0,0.00023561,2]
[357433279,1744066257151,-2143.85,0.00023561,2]
[357433281,1744066257161,-672.03,0.00023561,2]
[357433283,1744066257171,-500.0,0.00023561,2]
[357433285,1744066257182,-1176.29,0.00023561,2]
[357433287,1744066257191,-500.0,0.00023561,2]
[357433289,1744066257202,-532.09,0.00023561,2]
[357433291,1744066257212,-500.0,0.00023561,2]
[357433293,1744066257222,-500.0,0.00023561,2]
[357433295,1744066257233,-831.19,0.00023561,2]
[357433297,1744066257243,-500.0,0.00023561,2]
[357433299,1744066257253,-500.0,0.00023561,2]
[357433301,1744066257264,-1769.76,0.00023561,2]
[357433303,1744066257274,-500.0,0.00023561,2]
[357433305,1744066257285,-500.0,0.00023561,2]
[357433308,1744066257296,-539.61,0.00023561,2]
[357433310,1744066257307,-500.0,0.00023561,2]
[357433312,1744066257317,-1062.71,0.00023561,2]
[357433313,1744066257327,-500.0,0.00023561,2]
[357433315,1744066257337,-582.3,0.00023561,2]
[357433317,1744066257348,-500.0,0.00023561,2]
[357433319,1744066257358,-968.29,0.00023561,2]
[357433322,1744066257368,-500.0,0.00023561,2]
[357433323,1744066257378,-500.0,0.00023561,2]
[357433325,1744066257388,-443.91633254,0.00023561,2]
[357433327,1744066257398,-564.44,0.00023561,2]
[357433329,1744066257409,-500.0,0.00023561,2]
[357433331,1744066257419,-500.0,0.00023561,2]
[357433333,1744066257429,-1613.95,0.00023561,2]
[357433335,1744066257439,-500.0,0.00023561,2]
[357433337,1744066257449,-2461.22,0.00023561,2]
[357433339,1744066257459,-500.0,0.00023561,2]
[357433341,1744066257469,-873.55,0.00023561,2]
[357433343,1744066257479,-2674.77,0.00023561,2]
[357433345,1744066257490,-500.0,0.00023561,2]
[357433347,1744066257500,-631.6,0.00023561,2]
[357433349,1744066257511,-1394.78,0.00023561,2]
[357433351,1744066257522,-500.0,0.00023561,2]
[357433353,1744066257532,-500.0,0.00023561,2]
[357433355,1744066257543,-500.0,0.00023561,2]
[357433357,1744066257553,-500.0,0.00023561,2]
[357433359,1744066257563,-671.63,0.00023561,2]
[357433361,1744066257573,-500.0,0.00023561,2]
[357433363,1744066257584,-500.0,0.00023561,2]
[357433365,1744066257594,-500.0,0.00023561,2]
[357433367,1744066257604,-522.49,0.00023561,2]
[357433369,1744066257614,-1447.86,0.00023561,2]
[357433371,1744066257624,-3581.51,0.00023561,2]
[357433373,1744066257634,-500.0,0.00023561,2]
[357433375,1744066257644,-500.0,0.00023561,2]
[357433377,1744066257655,-500.0,0.00023561,2]
[357433379,1744066257665,-2777.14,0.00023561,2]
[357433381,1744066257675,-1349.66,0.00023561,2]
[357433383,1744066257685,-1293.9,0.00023561,2]
[357433385,1744066257696,-6741.73,0.00023561,2]
[357433387,1744066257707,-500.0,0.00023561,2]
[357433389,1744066257717,-2029.31,0.00023561,2]
[357433391,1744066257728,-576.67,0.00023561,2]
[357433393,1744066257740,-200.0,0.00023561,2]
[357433395,1744066257750,-1982.66,0.00023561,2]
[357433397,1744066257761,-500.0,0.00023561,2]
[357433399,1744066257771,-500.0,0.00023561,2]
[357433401,1744066257780,-537.39,0.00023561,2]
[357433403,1744066257791,-500.0,0.00023561,2]
[357433405,1744066257800,-500.0,0.00023561,2]
[357433406,1744066257811,-500.0,0.00023561,2]
[357433409,1744066257821,-500.0,0.00023561,2]
[357433410,1744066257831,-509.12,0.00023561,2]
[357433412,1744066257840,-500.0,0.00023561,2]
[357433414,1744066257850,-500.0,0.00023561,2]
[357433416,1744066257860,-2790.26,0.00023561,2]
[357433418,1744066257871,-500.0,0.00023561,2]
[357433421,1744066257883,-623.33,0.00023561,2]
[357433423,1744066257896,-500.0,0.00023561,2]
[357433425,1744066257906,-500.0,0.00023561,2]
[357433427,1744066257916,-957.01,0.00023561,2]
[357433428,1744066257927,-500.0,0.00023561,2]
[357433430,1744066257938,-1926.98,0.00023561,2]
[357433432,1744066257948,-2184.29,0.00023561,2]
[357433435,1744066257958,-500.0,0.00023561,2]
[357433436,1744066257969,-179.12894126,0.00023561,2]
[357433438,1744066257979,-500.0,0.00023561,2]
[357433440,1744066257989,-756.45,0.00023561,2]
[357433442,1744066258000,-2175.04,0.00023561,2]
[357433444,1744066258010,-500.0,0.00023561,2]
[357433446,1744066258021,-3830.55,0.00023561,2]
[357433448,1744066258032,-538.22,0.00023561,2]
[357433450,1744066258042,-1744.2,0.00023561,2]
[357433452,1744066258053,-500.0,0.00023561,2]
[357433454,1744066258063,-1489.78,0.00023561,2]
[357433456,1744066258073,-1219.67,0.00023561,2]
[357433458,1744066258083,-514.53,0.00023561,2]
[357433460,1744066258093,-1336.49,0.00023561,2]
[357433462,1744066258104,-500.0,0.00023561,2]
[357433464,1744066258114,-1384.16,0.00023561,2]
[357433466,1744066258124,-500.0,0.00023561,2]
[357433467,1744066258134,-553.35,0.00023561,2]
[357433468,1744066258144,-500.0,0.00023561,2]
[357433469,1744066258154,-929.62,0.00023561,2]
[357433470,1744066258164,-500.0,0.00023561,2]
[357433471,1744066258174,-500.0,0.00023561,2]
[357433472,1744066258184,-1147.47,0.00023561,2]